[Event "*** MasterClass Titled Tuesday Blitz"]
[Site "Chess.com"]
[Date "2017.11.07"]
[Round "4"]
[White "Maitreia"]
[Black "amurdercastle"]
[Result "1-0"]
[WhiteElo "2476"]
[BlackElo "2301"]
[TimeControl "180+2"]
[EndTime "14:58:03 PST"]
[Termination "Maitreia won by resignation"]

1. c4 {[%clk 0:03:01.4]} 1... e6 {[%clk 0:03:00]} 2. g3 {[%clk 0:03:02.5]} 2...
d5 {[%clk 0:03:01.1]} 3. Bg2 {[%clk 0:03:04.4]} 3... Nf6 {[%clk 0:03:01.8]} 4.
Nf3 {[%clk 0:03:06.3]} 4... Be7 {[%clk 0:03:01.7]} 5. O-O {[%clk 0:03:08.2]}
5... O-O {[%clk 0:03:03.2]} 6. b3 {[%clk 0:03:09.5]} 6... c5 {[%clk 0:03:04.2]}
7. Bb2 {[%clk 0:03:10.9]} 7... Nc6 {[%clk 0:03:05.6]} 8. e3 {[%clk 0:03:12.4]}
8... b6 {[%clk 0:03:07.1]} 9. Nc3 {[%clk 0:03:11.3]} 9... Bb7 {[%clk 0:03:07.8]}
10. cxd5 {[%clk 0:03:12.7]} 10... Nxd5 {[%clk 0:03:09.7]} 11. Nxd5 {[%clk
0:03:13.9]} 11... Qxd5 {[%clk 0:03:09.3]} 12. d4 {[%clk 0:03:15.8]} 12... Rad8
{[%clk 0:01:57.5]} 13. Ne5 {[%clk 0:03:01.8]} 13... Qd6 {[%clk 0:01:57.9]} 14.
dxc5 {[%clk 0:02:58.2]} 14... Qxc5 {[%clk 0:01:54.5]} 15. Nd7 {[%clk 0:02:59.4]}
15... Qb5 {[%clk 0:01:40.5]} 16. Qg4 {[%clk 0:02:50.6]} 16... e5 {[%clk
0:00:40.5]} 17. Nxf8 {[%clk 0:02:44.5]} 17... Bxf8 {[%clk 0:00:42.4]} 18. Rad1
{[%clk 0:02:37]} 18... Bc8 {[%clk 0:00:37.9]} 19. Qe4 {[%clk 0:02:28.6]} 19...
Rxd1 {[%clk 0:00:33.9]} 20. Rxd1 {[%clk 0:02:30.5]} 20... Nb4 {[%clk 0:00:15.3]}
21. Qxe5 {[%clk 0:02:26.8]} 21... Qxe5 {[%clk 0:00:10.9]} 22. Bxe5 {[%clk
0:02:28.7]} 22... Nxa2 {[%clk 0:00:12.6]} 23. Rd8 {[%clk 0:02:28.5]} 1-0

[Event "*** MasterClass Titled Tuesday Blitz"]
[Site "Chess.com"]
[Date "2017.11.07"]
[Round "4"]
[White "VitaliyBernadskiy"]
[Black "OparinGrigoriy"]
[Result "1-0"]
[WhiteElo "2566"]
[BlackElo "2677"]
[TimeControl "180+2"]
[EndTime "14:58:08 PST"]
[Termination "VitaliyBernadskiy won by resignation"]

1. e4 {[%clk 0:03:01.9]} 1... c5 {[%clk 0:03:01.4]} 2. Nf3 {[%clk 0:03:03]} 2...
d6 {[%clk 0:03:03]} 3. d4 {[%clk 0:03:04.1]} 3... cxd4 {[%clk 0:03:04.9]} 4.
Nxd4 {[%clk 0:03:05.6]} 4... Nf6 {[%clk 0:03:06.6]} 5. Nc3 {[%clk 0:03:06.8]}
5... a6 {[%clk 0:03:08.1]} 6. f3 {[%clk 0:03:07.6]} 6... e5 {[%clk 0:03:09]} 7.
Nb3 {[%clk 0:03:08.7]} 7... Be7 {[%clk 0:03:10.7]} 8. Be3 {[%clk 0:03:09.7]}
8... h5 {[%clk 0:03:10.2]} 9. Qd2 {[%clk 0:03:10.7]} 9... Nbd7 {[%clk
0:03:06.2]} 10. a4 {[%clk 0:03:10.4]} 10... b6 {[%clk 0:03:07.3]} 11. Be2 {[%clk
0:03:09.7]} 11... Bb7 {[%clk 0:03:08.7]} 12. O-O {[%clk 0:03:11]} 12... h4
{[%clk 0:03:07.7]} 13. Rfd1 {[%clk 0:03:08.9]} 13... Rc8 {[%clk 0:03:07.2]} 14.
Bf1 {[%clk 0:03:09.7]} 14... O-O {[%clk 0:03:05.3]} 15. Qf2 {[%clk 0:03:10.5]}
15... Re8 {[%clk 0:02:38.6]} 16. Rd3 {[%clk 0:02:55.2]} 16... Qc7 {[%clk
0:02:36.2]} 17. Rad1 {[%clk 0:02:55.5]} 17... Qb8 {[%clk 0:02:18.8]} 18. Bg5
{[%clk 0:02:39.7]} 18... Rxc3 {[%clk 0:01:34]} 19. bxc3 {[%clk 0:02:34.9]} 19...
Nxe4 {[%clk 0:01:34.7]} 20. fxe4 {[%clk 0:02:35.4]} 20... Bxg5 {[%clk
0:01:35.7]} 21. Qf5 {[%clk 0:02:32.2]} 21... Nf6 {[%clk 0:00:45.7]} 22. Qxg5
{[%clk 0:02:32.8]} 22... Nxe4 {[%clk 0:00:47.3]} 23. Qxh4 {[%clk 0:02:33.6]}
23... b5 {[%clk 0:00:48.5]} 24. Rh3 {[%clk 0:02:18.9]} 24... Qa7+ {[%clk
0:00:45.1]} 25. Nd4 {[%clk 0:02:20.1]} 25... Kf8 {[%clk 0:00:42.7]} 26. Qh8+
{[%clk 0:02:17.6]} 26... Ke7 {[%clk 0:00:43.9]} 27. Qxg7 {[%clk 0:02:18.9]} 1-0

[Event "*** MasterClass Titled Tuesday Blitz"]
[Site "Chess.com"]
[Date "2017.11.07"]
[Round "4"]
[White "JaimeSantosLatasa"]
[Black "severomorskij"]
[Result "0-1"]
[WhiteElo "2557"]
[BlackElo "2647"]
[TimeControl "180+2"]
[EndTime "14:58:49 PST"]
[Termination "severomorskij won by resignation"]

1. d4 {[%clk 0:02:55.8]} 1... Nf6 {[%clk 0:03:00.1]} 2. c4 {[%clk 0:02:55.4]}
2... e6 {[%clk 0:03:01.4]} 3. Nf3 {[%clk 0:02:55.2]} 3... d5 {[%clk 0:03:00.8]}
4. g3 {[%clk 0:02:55.3]} 4... dxc4 {[%clk 0:02:57.3]} 5. Bg2 {[%clk 0:02:56]}
5... Bd7 {[%clk 0:02:58.3]} 6. Ne5 {[%clk 0:02:56.1]} 6... Bc6 {[%clk
0:02:59.5]} 7. Nxc6 {[%clk 0:02:56.7]} 7... Nxc6 {[%clk 0:03:01]} 8. O-O {[%clk
0:02:57.9]} 8... Qd7 {[%clk 0:03:01.7]} 9. e3 {[%clk 0:02:58.6]} 9... Rd8 {[%clk
0:03:01.4]} 10. Nd2 {[%clk 0:02:59.4]} 10... b5 {[%clk 0:02:48.2]} 11. a4 {[%clk
0:02:54.1]} 11... a6 {[%clk 0:02:49.1]} 12. Ne4 {[%clk 0:02:54.3]} 12... Nxe4
{[%clk 0:02:33.7]} 13. Bxe4 {[%clk 0:02:56.2]} 13... Bd6 {[%clk 0:02:33.7]} 14.
axb5 {[%clk 0:02:54]} 14... axb5 {[%clk 0:02:34.3]} 15. b3 {[%clk 0:02:52.3]}
15... c3 {[%clk 0:02:26.3]} 16. Qh5 {[%clk 0:02:52.6]} 16... b4 {[%clk
0:02:16.4]} 17. d5 {[%clk 0:02:51.2]} 17... exd5 {[%clk 0:01:59.2]} 18. Bxd5
{[%clk 0:02:53.1]} 18... O-O {[%clk 0:01:53.3]} 19. e4 {[%clk 0:02:51.6]} 19...
Ne5 {[%clk 0:01:36.7]} 20. Bg5 {[%clk 0:02:47.9]} 20... c6 {[%clk 0:01:11]} 21.
Bxd8 {[%clk 0:02:44.9]} 21... Rxd8 {[%clk 0:00:58.3]} 22. f4 {[%clk 0:02:43.8]}
22... cxd5 {[%clk 0:00:56.3]} 23. fxe5 {[%clk 0:02:44.4]} 23... Bc5+ {[%clk
0:00:57.4]} 24. Kh1 {[%clk 0:02:43.9]} 24... g6 {[%clk 0:00:44.2]} 25. Qe2
{[%clk 0:02:39.9]} 25... d4 {[%clk 0:00:41.6]} 26. Qc4 {[%clk 0:02:40]} 26...
Bf8 {[%clk 0:00:27]} 27. Qd3 {[%clk 0:02:21.6]} 27... Qe6 {[%clk 0:00:24.6]} 28.
Ra7 {[%clk 0:02:19.7]} 28... Rc8 {[%clk 0:00:20.5]} 29. Rf6 {[%clk 0:02:11.5]}
29... c2 {[%clk 0:00:18.7]} 0-1

[Event "*** MasterClass Titled Tuesday Blitz"]
[Site "Chess.com"]
[Date "2017.11.07"]
[Round "4"]
[White "gmcorrales"]
[Black "Fy_Rakotomaharo"]
[Result "1-0"]
[WhiteElo "2677"]
[BlackElo "2448"]
[TimeControl "180+2"]
[EndTime "14:59:29 PST"]
[Termination "gmcorrales won by resignation"]

1. e4 {[%clk 0:03:00.7]} 1... c5 {[%clk 0:02:59.9]} 2. Nf3 {[%clk 0:02:58.9]}
2... Nc6 {[%clk 0:02:59.7]} 3. d4 {[%clk 0:02:59.9]} 3... cxd4 {[%clk
0:02:58.3]} 4. Nxd4 {[%clk 0:03:01.8]} 4... e5 {[%clk 0:02:58.8]} 5. Nb5 {[%clk
0:02:59.9]} 5... d6 {[%clk 0:02:59.6]} 6. N1c3 {[%clk 0:03:00.5]} 6... a6 {[%clk
0:02:55.3]} 7. Na3 {[%clk 0:03:01.4]} 7... Be7 {[%clk 0:02:56.2]} 8. Nd5 {[%clk
0:03:01.6]} 8... Nf6 {[%clk 0:02:56.5]} 9. Nxf6+ {[%clk 0:03:01.8]} 9... Bxf6
{[%clk 0:02:57.1]} 10. Nc4 {[%clk 0:03:03.7]} 10... O-O {[%clk 0:02:58.2]} 11.
Qxd6 {[%clk 0:03:01.5]} 11... Qxd6 {[%clk 0:02:57.3]} 12. Nxd6 {[%clk
0:03:03.4]} 12... Nb4 {[%clk 0:02:58.2]} 13. Bd3 {[%clk 0:02:57.2]} 13... Rd8
{[%clk 0:02:57.9]} 14. Nxc8 {[%clk 0:02:31.6]} 14... Raxc8 {[%clk 0:02:57.8]}
15. Bd2 {[%clk 0:01:06.6]} 15... Nxc2+ {[%clk 0:02:43.7]} 16. Bxc2 {[%clk
0:01:06.1]} 16... Rxc2 {[%clk 0:02:44.9]} 17. Bc3 {[%clk 0:01:07.5]} 17... Bh4
{[%clk 0:02:19.9]} 18. O-O {[%clk 0:00:56.7]} 18... Re2 {[%clk 0:02:19.7]} 19.
g3 {[%clk 0:00:54.4]} 19... Be7 {[%clk 0:02:17.4]} 20. Rfe1 {[%clk 0:00:29.2]}
20... Rxe1+ {[%clk 0:02:16.8]} 21. Rxe1 {[%clk 0:00:31.1]} 21... f6 {[%clk
0:02:17.9]} 22. Kf1 {[%clk 0:00:32.3]} 22... b5 {[%clk 0:02:13]} 23. Ke2 {[%clk
0:00:33.4]} 23... Bc5 {[%clk 0:02:08.3]} 24. Rc1 {[%clk 0:00:30.5]} 24... Bb6
{[%clk 0:02:02.3]} 25. Bd2 {[%clk 0:00:25.9]} 25... Bxf2 {[%clk 0:02:00.7]} 26.
Ba5 {[%clk 0:00:26.4]} 26... Rd4 {[%clk 0:01:55.4]} 27. Kxf2 {[%clk 0:00:27.3]}
27... Rxe4 {[%clk 0:01:54.4]} 28. a3 {[%clk 0:00:26.5]} 28... Ra4 {[%clk
0:01:47.3]} 29. Bc3 {[%clk 0:00:22.9]} 29... Kf7 {[%clk 0:01:44.2]} 30. Bb4
{[%clk 0:00:24]} 30... a5 {[%clk 0:01:43.5]} 31. b3 {[%clk 0:00:25.5]} 1-0

[Event "*** MasterClass Titled Tuesday Blitz"]
[Site "Chess.com"]
[Date "2017.11.07"]
[Round "4"]
[White "PenguinPacks"]
[Black "AttilaTurzo"]
[Result "1-0"]
[WhiteElo "2179"]
[BlackElo "2353"]
[TimeControl "180+2"]
[EndTime "14:59:31 PST"]
[Termination "PenguinPacks won by resignation"]

1. e4 {[%clk 0:03:01.9]} 1... c5 {[%clk 0:03:01]} 2. Nf3 {[%clk 0:03:02.7]} 2...
g6 {[%clk 0:03:02.6]} 3. d4 {[%clk 0:03:01]} 3... cxd4 {[%clk 0:03:02.1]} 4.
Nxd4 {[%clk 0:03:02.9]} 4... Nc6 {[%clk 0:03:03.4]} 5. Be3 {[%clk 0:03:02.5]}
5... Nf6 {[%clk 0:02:59.5]} 6. Nc3 {[%clk 0:03:01]} 6... Bg7 {[%clk 0:03:00.1]}
7. Bc4 {[%clk 0:03:00.9]} 7... O-O {[%clk 0:03:00.7]} 8. Bb3 {[%clk 0:03:00.7]}
8... a5 {[%clk 0:03:01.5]} 9. f3 {[%clk 0:03:00.2]} 9... d6 {[%clk 0:02:39.7]}
10. Qd2 {[%clk 0:02:58.4]} 10... Bd7 {[%clk 0:02:39.7]} 11. a4 {[%clk
0:02:55.3]} 11... Nxd4 {[%clk 0:02:32.3]} 12. Bxd4 {[%clk 0:02:54.3]} 12... Bc6
{[%clk 0:02:33.9]} 13. O-O-O {[%clk 0:02:47.7]} 13... Nd7 {[%clk 0:02:22.7]} 14.
Bxg7 {[%clk 0:02:45.3]} 14... Kxg7 {[%clk 0:02:24.6]} 15. h4 {[%clk 0:02:46.5]}
15... h6 {[%clk 0:02:23.4]} 16. f4 {[%clk 0:02:27]} 16... f6 {[%clk 0:02:12.5]}
17. Rh3 {[%clk 0:01:59.7]} 17... Nc5 {[%clk 0:01:59.7]} 18. Bd5 {[%clk
0:02:00.2]} 18... Qd7 {[%clk 0:01:35.7]} 19. Rg3 {[%clk 0:01:28.8]} 19... Rh8
{[%clk 0:01:23.3]} 20. f5 {[%clk 0:01:22.6]} 20... g5 {[%clk 0:01:23.9]} 21. Rh1
{[%clk 0:01:20.2]} 21... Rh7 {[%clk 0:01:00.5]} 22. hxg5 {[%clk 0:01:02.4]}
22... hxg5 {[%clk 0:01:02.4]} 23. Rxg5+ {[%clk 0:00:34.6]} 23... fxg5 {[%clk
0:00:54]} 24. Qxg5+ {[%clk 0:00:35.2]} 24... Kh8 {[%clk 0:00:55]} 25. Rxh7+
{[%clk 0:00:35.9]} 25... Kxh7 {[%clk 0:00:54.9]} 26. Qg6+ {[%clk 0:00:37.5]} 1-0

[Event "*** MasterClass Titled Tuesday Blitz"]
[Site "Chess.com"]
[Date "2017.11.07"]
[Round "4"]
[White "Khamrakulov_Djurabek"]
[Black "AkshatChandra"]
[Result "1-0"]
[WhiteElo "2654"]
[BlackElo "2732"]
[TimeControl "180+2"]
[EndTime "14:59:35 PST"]
[Termination "Khamrakulov_Djurabek won by resignation"]

1. e4 {[%clk 0:03:01.9]} 1... e5 {[%clk 0:03:01.6]} 2. Nf3 {[%clk 0:03:02.4]}
2... Nc6 {[%clk 0:03:00.8]} 3. d4 {[%clk 0:03:02.8]} 3... exd4 {[%clk
0:03:01.1]} 4. Nxd4 {[%clk 0:03:04]} 4... Nf6 {[%clk 0:03:02.3]} 5. Nxc6 {[%clk
0:03:03.1]} 5... bxc6 {[%clk 0:03:04.2]} 6. e5 {[%clk 0:03:04.3]} 6... Qe7
{[%clk 0:03:04.5]} 7. Qe2 {[%clk 0:03:05.5]} 7... Nd5 {[%clk 0:03:05.9]} 8. c4
{[%clk 0:03:06.6]} 8... Ba6 {[%clk 0:03:06.6]} 9. b3 {[%clk 0:03:06.9]} 9... g6
{[%clk 0:03:07.3]} 10. f4 {[%clk 0:03:04]} 10... Bg7 {[%clk 0:03:05.9]} 11. Qf2
{[%clk 0:03:03.4]} 11... Nb6 {[%clk 0:02:47]} 12. Ba3 {[%clk 0:03:04.3]} 12...
Qe6 {[%clk 0:02:10.6]} 13. c5 {[%clk 0:03:04.9]} 13... Bxf1 {[%clk 0:02:10]} 14.
cxb6 {[%clk 0:03:00.8]} 14... Ba6 {[%clk 0:01:59]} 15. bxc7 {[%clk 0:02:58.9]}
15... f6 {[%clk 0:01:50.4]} 16. Nc3 {[%clk 0:02:49.3]} 16... fxe5 {[%clk
0:01:38.6]} 17. O-O-O {[%clk 0:02:23]} 17... d5 {[%clk 0:01:35.8]} 18. Rhe1
{[%clk 0:02:23.2]} 18... e4 {[%clk 0:01:27.6]} 19. Nxe4 {[%clk 0:02:22.6]} 19...
dxe4 {[%clk 0:01:22.5]} 20. Rxe4 {[%clk 0:02:22.3]} 20... Qxe4 {[%clk
0:00:49.2]} 21. Re1 {[%clk 0:02:23]} 21... Qxe1+ {[%clk 0:00:37.9]} 22. Qxe1+
{[%clk 0:02:22.3]} 22... Kd7 {[%clk 0:00:37.8]} 23. Qe7+ {[%clk 0:02:22.5]}
23... Kc8 {[%clk 0:00:39.5]} 24. Qxg7 {[%clk 0:02:14]} 24... Re8 {[%clk
0:00:40.2]} 25. Qf7 {[%clk 0:02:10.2]} 25... Re1+ {[%clk 0:00:24.9]} 26. Kd2
{[%clk 0:02:10.5]} 26... Re2+ {[%clk 0:00:25.7]} 27. Kd1 {[%clk 0:02:08]} 27...
Rxa2 {[%clk 0:00:21.2]} 28. Bd6 {[%clk 0:02:06.2]} 28... Be2+ {[%clk 0:00:09]}
29. Ke1 {[%clk 0:02:03.1]} 29... Bg4 {[%clk 0:00:06]} 30. Qe8+ {[%clk
0:01:55.1]} 30... Kb7 {[%clk 0:00:05.9]} 31. Qb8+ {[%clk 0:01:55.3]} 31... Rxb8
{[%clk 0:00:04.4]} 32. cxb8=Q+ {[%clk 0:01:54.5]} 32... Ka6 {[%clk 0:00:05]} 33.
Bc5 {[%clk 0:01:49.8]} 1-0

[Event "*** MasterClass Titled Tuesday Blitz"]
[Site "Chess.com"]
[Date "2017.11.07"]
[Round "4"]
[White "igorkovalenko"]
[Black "Man-Chuk"]
[Result "0-1"]
[WhiteElo "2784"]
[BlackElo "2619"]
[TimeControl "180+2"]
[EndTime "14:59:36 PST"]
[Termination "Man-Chuk won by resignation"]

1. e4 {[%clk 0:03:01.9]} 1... e5 {[%clk 0:02:59.4]} 2. Nf3 {[%clk 0:03:02.7]}
2... Nc6 {[%clk 0:02:59.2]} 3. Bb5 {[%clk 0:02:59.6]} 3... Nf6 {[%clk
0:02:58.7]} 4. O-O {[%clk 0:02:59.1]} 4... Nxe4 {[%clk 0:02:57.9]} 5. Re1 {[%clk
0:03:00.5]} 5... Nd6 {[%clk 0:02:58.4]} 6. Nxe5 {[%clk 0:03:01.9]} 6... Nxe5
{[%clk 0:02:58.6]} 7. Rxe5+ {[%clk 0:03:03.8]} 7... Be7 {[%clk 0:02:59.8]} 8.
Bf1 {[%clk 0:03:05.5]} 8... O-O {[%clk 0:02:59.6]} 9. d4 {[%clk 0:03:07.1]} 9...
Bf6 {[%clk 0:02:34.5]} 10. Re2 {[%clk 0:03:08]} 10... b6 {[%clk 0:02:27.7]} 11.
Bf4 {[%clk 0:03:01.4]} 11... Nf5 {[%clk 0:02:15.6]} 12. Rd2 {[%clk 0:02:59.7]}
12... d5 {[%clk 0:02:13.9]} 13. c3 {[%clk 0:03:00.8]} 13... Be6 {[%clk
0:02:07.8]} 14. Na3 {[%clk 0:03:01.4]} 14... Bg5 {[%clk 0:01:56.7]} 15. Bxg5
{[%clk 0:03:01.3]} 15... Qxg5 {[%clk 0:01:58.6]} 16. Re2 {[%clk 0:02:47.4]}
16... c6 {[%clk 0:01:49.6]} 17. Nc2 {[%clk 0:02:47.7]} 17... Rae8 {[%clk
0:01:48.4]} 18. Nb4 {[%clk 0:02:48.4]} 18... Bd7 {[%clk 0:01:44.2]} 19. Nd3
{[%clk 0:02:41]} 19... Rxe2 {[%clk 0:01:44.8]} 20. Bxe2 {[%clk 0:02:41.8]} 20...
f6 {[%clk 0:01:41.9]} 21. Qa4 {[%clk 0:02:36.8]} 21... a5 {[%clk 0:01:30]} 22.
Qb3 {[%clk 0:02:33.4]} 22... Re8 {[%clk 0:01:22.9]} 23. Bf1 {[%clk 0:02:33.5]}
23... Nh4 {[%clk 0:01:12.4]} 24. Kh1 {[%clk 0:02:31]} 24... Bf5 {[%clk
0:01:02.8]} 25. c4 {[%clk 0:02:04.5]} 25... Be4 {[%clk 0:00:53.4]} 26. Ne1
{[%clk 0:02:05]} 26... dxc4 {[%clk 0:00:49.9]} 27. Bxc4+ {[%clk 0:02:02]} 27...
Kh8 {[%clk 0:00:50.5]} 28. f3 {[%clk 0:01:43.6]} 28... Bxf3 {[%clk 0:00:44]} 29.
Bf1 {[%clk 0:01:17.8]} 29... Rxe1 {[%clk 0:00:42.4]} 30. Rxe1 {[%clk 0:01:18.6]}
30... Bxg2+ {[%clk 0:00:42.9]} 31. Kg1 {[%clk 0:01:19.2]} 31... Bd5+ {[%clk
0:00:43.5]} 32. Qg3 {[%clk 0:01:19.3]} 32... Qxg3+ {[%clk 0:00:44]} 33. hxg3
{[%clk 0:01:19.7]} 33... Nf3+ {[%clk 0:00:45.5]} 34. Kf2 {[%clk 0:01:21.6]}
34... Nxe1 {[%clk 0:00:46.1]} 35. Kxe1 {[%clk 0:01:23.5]} 35... Bxa2 {[%clk
0:00:46.3]} 36. Kd2 {[%clk 0:01:25.1]} 36... Bd5 {[%clk 0:00:47]} 0-1

[Event "*** MasterClass Titled Tuesday Blitz"]
[Site "Chess.com"]
[Date "2017.11.07"]
[Round "4"]
[White "Blitzstream"]
[Black "rpragchess"]
[Result "1-0"]
[WhiteElo "2487"]
[BlackElo "2298"]
[TimeControl "180+2"]
[EndTime "14:59:37 PST"]
[Termination "Blitzstream won by resignation"]

1. d4 {[%clk 0:03:01.9]} 1... Nf6 {[%clk 0:03:00.6]} 2. Nf3 {[%clk 0:03:01.9]}
2... d5 {[%clk 0:03:00.1]} 3. e3 {[%clk 0:03:02.7]} 3... e6 {[%clk 0:02:57.4]}
4. c4 {[%clk 0:03:01.9]} 4... a6 {[%clk 0:02:56.9]} 5. Nc3 {[%clk 0:02:56.5]}
5... dxc4 {[%clk 0:02:57.3]} 6. Bxc4 {[%clk 0:02:57.9]} 6... b5 {[%clk
0:02:58.3]} 7. Bb3 {[%clk 0:02:57.7]} 7... Bb7 {[%clk 0:02:57.5]} 8. O-O {[%clk
0:02:57.6]} 8... c5 {[%clk 0:02:54.5]} 9. Qe2 {[%clk 0:02:52.7]} 9... Nbd7
{[%clk 0:02:53.8]} 10. Rd1 {[%clk 0:02:50]} 10... Qb6 {[%clk 0:02:54.2]} 11. Ne5
{[%clk 0:02:19.6]} 11... Nxe5 {[%clk 0:02:43]} 12. dxe5 {[%clk 0:02:20.6]} 12...
Nd7 {[%clk 0:02:44.6]} 13. f4 {[%clk 0:02:20.9]} 13... Be7 {[%clk 0:02:43.6]}
14. Bc2 {[%clk 0:02:21.3]} 14... Bc6 {[%clk 0:02:35.2]} 15. Ne4 {[%clk
0:02:17.2]} 15... Bd5 {[%clk 0:02:29.2]} 16. Nd6+ {[%clk 0:01:52.5]} 16... Bxd6
{[%clk 0:02:24.6]} 17. exd6 {[%clk 0:01:54.4]} 17... Qxd6 {[%clk 0:02:23.4]} 18.
e4 {[%clk 0:01:49.5]} 18... Bc4 {[%clk 0:02:23.3]} 19. Qg4 {[%clk 0:01:20.8]}
19... Qb6 {[%clk 0:01:25.5]} 20. b3 {[%clk 0:01:19.5]} 20... Nf6 {[%clk
0:00:30]} 21. Qxg7 {[%clk 0:01:18]} 21... Ke7 {[%clk 0:00:16.8]} 22. Bb2 {[%clk
0:01:11.9]} 22... e5 {[%clk 0:00:15.2]} 23. Bxe5 {[%clk 0:01:08.8]} 23... Be2
{[%clk 0:00:15.2]} 24. Rd6 {[%clk 0:01:07.4]} 1-0

[Event "*** MasterClass Titled Tuesday Blitz"]
[Site "Chess.com"]
[Date "2017.11.07"]
[Round "4"]
[White "temiksmozg"]
[Black "Tarlev_Konstantin"]
[Result "0-1"]
[WhiteElo "2455"]
[BlackElo "2625"]
[TimeControl "180+2"]
[EndTime "14:59:37 PST"]
[Termination "Tarlev_Konstantin won on time"]

1. d4 {[%clk 0:03:00.3]} 1... Nf6 {[%clk 0:03:00.7]} 2. c4 {[%clk 0:03:01]} 2...
g6 {[%clk 0:03:01.6]} 3. Nc3 {[%clk 0:03:02]} 3... Bg7 {[%clk 0:03:03.1]} 4. e4
{[%clk 0:03:01.9]} 4... d6 {[%clk 0:03:04.7]} 5. Nf3 {[%clk 0:03:02.9]} 5... O-O
{[%clk 0:03:05.7]} 6. Be2 {[%clk 0:03:04.4]} 6... Nbd7 {[%clk 0:03:05.2]} 7. O-O
{[%clk 0:03:04.9]} 7... e5 {[%clk 0:03:06.8]} 8. Qc2 {[%clk 0:03:06]} 8... c6
{[%clk 0:03:03.6]} 9. d5 {[%clk 0:03:05.9]} 9... c5 {[%clk 0:03:01]} 10. g3
{[%clk 0:03:05.8]} 10... Nh5 {[%clk 0:02:53.6]} 11. Nh4 {[%clk 0:03:06.6]} 11...
Ndf6 {[%clk 0:02:54.8]} 12. Bd2 {[%clk 0:02:48.1]} 12... Bh3 {[%clk 0:02:52.1]}
13. Ng2 {[%clk 0:02:47.8]} 13... Ng4 {[%clk 0:02:35.9]} 14. f3 {[%clk
0:02:42.9]} 14... Nh6 {[%clk 0:02:36.6]} 15. Rf2 {[%clk 0:02:36.6]} 15... f5
{[%clk 0:02:26.5]} 16. exf5 {[%clk 0:02:27.5]} 16... Nxf5 {[%clk 0:02:26.7]} 17.
Ne4 {[%clk 0:02:14.5]} 17... Nd4 {[%clk 0:02:25.7]} 18. Qd3 {[%clk 0:02:15.4]}
18... Nf6 {[%clk 0:02:13.7]} 19. Bg5 {[%clk 0:01:31.7]} 19... Nxe4 {[%clk
0:02:13.1]} 20. Bxd8 {[%clk 0:01:21.7]} 20... Nxf2 {[%clk 0:02:14.2]} 21. Kxf2
{[%clk 0:01:23.2]} 21... Raxd8 {[%clk 0:02:15.2]} 22. Kg1 {[%clk 0:01:07]} 22...
Bf5 {[%clk 0:02:03.2]} 23. Qd2 {[%clk 0:01:02.5]} 23... Bd7 {[%clk 0:01:58.6]}
24. Rf1 {[%clk 0:01:00.4]} 24... Rb8 {[%clk 0:01:40.3]} 25. b3 {[%clk
0:00:59.1]} 25... b5 {[%clk 0:01:40.3]} 26. Ne1 {[%clk 0:00:52.1]} 26... bxc4
{[%clk 0:01:32.7]} 0-1

[Event "*** MasterClass Titled Tuesday Blitz"]
[Site "Chess.com"]
[Date "2017.11.07"]
[Round "4"]
[White "gammagramma"]
[Black "TheMagician"]
[Result "1-0"]
[WhiteElo "2437"]
[BlackElo "2265"]
[TimeControl "180+2"]
[EndTime "14:59:38 PST"]
[Termination "gammagramma won by resignation"]

1. d4 {[%clk 0:03:00.9]} 1... d5 {[%clk 0:03:01.9]} 2. c4 {[%clk 0:03:01.1]}
2... e6 {[%clk 0:03:02.7]} 3. Nc3 {[%clk 0:03:01.9]} 3... Nf6 {[%clk 0:03:04.1]}
4. Bg5 {[%clk 0:03:03.1]} 4... Nbd7 {[%clk 0:03:04.6]} 5. e3 {[%clk 0:03:03.5]}
5... Be7 {[%clk 0:03:05.2]} 6. Rc1 {[%clk 0:03:04.5]} 6... c6 {[%clk 0:03:06.4]}
7. Bd3 {[%clk 0:03:05.1]} 7... a6 {[%clk 0:02:39.4]} 8. h3 {[%clk 0:03:05.4]}
8... dxc4 {[%clk 0:02:35.7]} 9. Bxc4 {[%clk 0:03:06.2]} 9... b5 {[%clk
0:02:37.1]} 10. Be2 {[%clk 0:03:03.6]} 10... c5 {[%clk 0:02:38.3]} 11. Bf3
{[%clk 0:03:04.4]} 11... Ra7 {[%clk 0:02:37.8]} 12. Nge2 {[%clk 0:03:04.2]}
12... Bb7 {[%clk 0:02:38.5]} 13. Bxb7 {[%clk 0:03:04.7]} 13... Rxb7 {[%clk
0:02:39.5]} 14. d5 {[%clk 0:03:04.8]} 14... exd5 {[%clk 0:02:36.6]} 15. Nxd5
{[%clk 0:02:57.7]} 15... O-O {[%clk 0:02:20.4]} 16. Nxe7+ {[%clk 0:02:57.1]}
16... Qxe7 {[%clk 0:02:21.4]} 17. O-O {[%clk 0:02:58.2]} 17... Qe6 {[%clk
0:02:22.1]} 18. Nf4 {[%clk 0:02:58]} 18... Qxa2 {[%clk 0:02:21.9]} 19. Qc2
{[%clk 0:02:50.7]} 19... h6 {[%clk 0:02:18.8]} 20. Ra1 {[%clk 0:02:50.3]} 20...
Qc4 {[%clk 0:02:20]} 21. Qxc4 {[%clk 0:02:49.1]} 21... bxc4 {[%clk 0:02:21.3]}
22. Bxf6 {[%clk 0:02:50.2]} 22... Nxf6 {[%clk 0:02:22.4]} 23. Rxa6 {[%clk
0:02:51.8]} 23... Rxb2 {[%clk 0:02:23.5]} 24. Rc1 {[%clk 0:02:52.9]} 24... Rc8
{[%clk 0:02:22.4]} 25. Rxc4 {[%clk 0:02:51.8]} 25... Rb1+ {[%clk 0:02:23.2]} 26.
Kh2 {[%clk 0:02:52.6]} 26... Rb4 {[%clk 0:02:25.1]} 27. Rxb4 {[%clk 0:02:52.6]}
27... cxb4 {[%clk 0:02:26.2]} 28. Rb6 {[%clk 0:02:54]} 28... g5 {[%clk
0:02:20.3]} 29. Rxf6 {[%clk 0:02:36.2]} 29... gxf4 {[%clk 0:02:21]} 30. Rxf4
{[%clk 0:02:38.1]} 30... Rb8 {[%clk 0:02:22.3]} 31. Rc4 {[%clk 0:02:39.7]} 31...
b3 {[%clk 0:02:23.5]} 32. Rc1 {[%clk 0:02:41.3]} 32... Kg7 {[%clk 0:02:22.5]}
33. Kg3 {[%clk 0:02:42.4]} 33... b2 {[%clk 0:02:22.3]} 34. Rb1 {[%clk
0:02:42.7]} 34... Kf6 {[%clk 0:02:23.6]} 35. Kf3 {[%clk 0:02:41.4]} 35... Ke5
{[%clk 0:02:24.4]} 36. Ke2 {[%clk 0:02:42.5]} 36... f5 {[%clk 0:02:24.3]} 37.
Kd2 {[%clk 0:02:42.5]} 37... f4 {[%clk 0:02:25.7]} 38. exf4+ {[%clk 0:02:43.5]}
38... Kxf4 {[%clk 0:02:27]} 39. Kc3 {[%clk 0:02:43.8]} 39... Rg8 {[%clk
0:02:21.7]} 40. g3+ {[%clk 0:02:44.9]} 40... Kf3 {[%clk 0:02:22.9]} 41. Rxb2
{[%clk 0:02:46.5]} 41... Rc8+ {[%clk 0:02:21]} 42. Kd4 {[%clk 0:02:46.3]} 42...
Re8 {[%clk 0:02:21.8]} 43. g4 {[%clk 0:02:42.4]} 43... Re4+ {[%clk 0:02:19.2]}
44. Kd5 {[%clk 0:02:42.9]} 44... Re8 {[%clk 0:02:21.1]} 45. Rb6 {[%clk
0:02:41.9]} 45... h5 {[%clk 0:02:07.3]} 46. Rf6+ {[%clk 0:02:35.1]} 46... Kg2
{[%clk 0:02:07.4]} 47. gxh5 {[%clk 0:01:53.7]} 47... Kxh3 {[%clk 0:02:07.7]} 48.
h6 {[%clk 0:01:55]} 48... Kh4 {[%clk 0:02:06.7]} 49. f4 {[%clk 0:01:55.7]} 49...
Kg4 {[%clk 0:01:53.1]} 50. h7 {[%clk 0:01:54]} 50... Rh8 {[%clk 0:01:51.8]} 51.
Rf7 {[%clk 0:01:52.5]} 51... Re8 {[%clk 0:01:48.5]} 52. Rg7+ {[%clk 0:01:51.1]}
52... Kf5 {[%clk 0:01:47.9]} 53. Rg5+ {[%clk 0:01:46]} 53... Kf6 {[%clk
0:01:47.7]} 54. Rg8 {[%clk 0:01:47]} 54... Re5+ {[%clk 0:01:44.5]} 1-0